{"text_format":"1","workbook":"xlsx","n_sheets":16,"sheets":["↓","✗","Site","Fund center","Profit center","Cost center","MIS code","Commit","Object","Asset","Statistic","Financial","Trust","Sub","Fund","Other"],"not_rendered":{"charts":0,"images":0,"macros":1,"external_links":1,"defined_names":20,"comments":0,"pivot_tables":0},"unopened":[],"bounds":{"document_bytes":16777216,"sheet_cells":100000,"rows_first":2000,"rows_last":500,"rows_between":2000,"halvings":0,"cell_chars":16384,"cell_head_chars":4096},"cells_cut":0,"cells_raw":0,"read":"whole","date_system":"1900"}

{"sheet":"↓","index":0,"n_rows":80,"n_cols":16,"rows_kept":80,"cut":false,"hidden":true,"merged":[]}
["Mã có tên","Site","SITE (CƠ SỞ KINH DOANH)","FUND CENTER (BỘ PHẬN LẬP NGÂN SÁCH)","PROFIT CENTER","COST CENTER (BỘ PHẬN)","MIS CODE (MÃ LẬP BÁO CÁO QUẢN TRỊ)","COMMIT (MÃ KHOẢN MỤC)","MÃ KHOẢN MỤC NGÂN SÁCH","ĐỐI TƯỢNG DỊCH VỤ","QUỸ","MỨC ĐỘ TIN CẬY","SỐ TG PB","MÃ PHỤ","FINANCIAL STATEMENT","_"]
[true,"HY",{"$f":"_xlfn.LET(_xlpm.a,L_SI[Site],\n_xlpm.a&IF($A$2,\";\"&_xlfn.XLOOKUP(_xlpm.a,L_SI[Site],L_SI[Name]),\"\"))","v":"_;_"},{"$f":"_xlfn.LET(_xlpm.a,L_FC[Fund center],\n_xlpm.a&IF($A$2,\";\"&_xlfn.XLOOKUP(_xlpm.a,L_FC[Fund center],L_FC[FC name]),\"\"))","v":"VN03010000;SGB/HO/HĐQT"},{"$f":"_xlfn.LET(_xlpm.a,L_PC[Profit center],\n_xlpm.a&IF($A$2,\";\"&_xlfn.XLOOKUP(_xlpm.a,L_PC[Profit center],L_PC[PC name]),\"\"))","v":"VN03010000;SGB/HO/HĐQT"},{"$f":"_xlfn.LET(_xlpm.a,_xlfn._xlws.FILTER(L_CC[Cost center],ISNUMBER(SEARCH($B$2,L_CC[Site]))),\n_xlpm.a&IF($A$2,\";\"&_xlfn.XLOOKUP(_xlpm.a,L_CC[Cost center],L_CC[CC name]),\"\"))","v":{"$error":"#VALUE!"}},{"$f":"_xlfn.LET(_xlpm.c,L_Mis[MIS code],_xlpm.c&IF($A$2,\";\"&_xlfn.XLOOKUP(_xlpm.c,L_Mis[MIS code],L_Mis[MIS name]),\"\"))","v":"MIS.DT001;Doanh thu bán vé"},{"$f":"_xlfn.LET(_xlpm.c,L_CI[CI code],_xlpm.c&IF($A$2,\";\"&_xlfn.XLOOKUP(_xlpm.c,L_CI[CI code],L_CI[CI name]),\"\"))","v":"MIS.DT001;Doanh thu bán vé"},{"$f":"_xlfn.LET(\n_xlpm.a,_xlfn.LET(_xlpm.c,L_CI[CI code],_xlpm.c&IF($A$2,\";\"&_xlfn.XLOOKUP(_xlpm.c,L_CI[CI code],L_CI[CI name]),\"\")),\n_xlpm.b,_xlfn.LET(_xlpm.s,L_ST[Statistics],_xlpm.s&IF($A$2,\";\"&_xlfn.XLOOKUP(_xlpm.s,L_ST[Statistics],L_ST[Statistics name]),\"\")),\n_xlpm.c,ROWS(_xlpm.a),_xlpm.d,ROWS(_xlpm.b),_xlpm.e,_xlpm.c+_xlpm.d,IF(_xlfn.SEQUENCE(_xlpm.e)<=_xlpm.c,INDEX(_xlpm.a,_xlfn.SEQUENCE(_xlpm.c),{1}),INDEX(_xlpm.b,_xlfn.SEQUENCE(_xlpm.e)-_xlpm.c,{1})))","v":"MIS.DT001;Doanh thu bán vé"},{"$f":"_xlfn.LET(_xlpm.a,L_OJ[Object],\n_xlpm.a&IF($A$2,\";\"&_xlfn.XLOOKUP(_xlpm.a,L_OJ[Object],L_OJ[Object name]),\"\"))","v":"_;_"},{"$f":"_xlfn.LET(_xlpm.a,L_FD[Fund],\n_xlpm.a&IF($A$2,\";\"&_xlfn.XLOOKUP(_xlpm.a,L_FD[Fund],L_FD[Fund name]),\"\"))","v":";"},{"$f":"L_TR[Trust]","v":"Xanh"},{"$f":"L_KY[KỲ PB]","v":0},{"$f":"L_SUB[Sub code]","v":"6_"},{"$f":"_xlfn.LET(_xlpm.a,L_FS[FS code],\n_xlpm.a&IF($A$2,\";\"&_xlfn.XLOOKUP(_xlpm.a,L_FS[FS code],L_FS[FS name]),\"\"))","v":"001_;Doanh thu bán hàng"}]
[null,null,"HO;Head Office","VN03020000;SGB/HO/Ban kiểm soát","VN03020000;SGB/HO/Ban kiểm soát",null,"MIS.DT002;Doanh thu trợ giá ","MIS.DT002;Doanh thu trợ giá ","MIS.DT002;Doanh thu trợ giá ","XN01;Văn phòng Buýt Lạc Long Quân",null,"Vàng",1,"10_","002_;Chiết khấu, giảm giá"]
[null,null,"S10;Bảo dưỡng sửa chữa","VN03030000;SGB/HO/Ban Tổng giám đốc","VN03030000;SGB/HO/Ban Tổng Giám đốc",null,"MIS.DT003;Doanh thu quảng cáo","MIS.DT003;Doanh thu quảng cáo","MIS.DT003;Doanh thu quảng cáo","XN02;Xí nghiệp Vận tải Buýt",null,"Đỏ",2,"50_","011_;Giá vốn hàng bán"]
[null,null,"S20;GDNN&SHLX","VN03040000;SGB/HO/P. Tổ chức - Hành chính","VN03040000;SGB/HO/P. Tổ chức - Hành chính",null,"MIS.DT004;Doanh thu cho thuê tài sản","MIS.DT004;Doanh thu cho thuê tài sản","MIS.DT004;Doanh thu cho thuê tài sản","XN03;Văn phòng Buýt Phan Văn Trị",null,"Tím",3,"52_","021_;Doanh thu tài chính"]
[null,null,"S30;Buýt","VN03050000;SGB/HO/P. Tài chính - Kế toán","VN03050000;SGB/HO/P. Tài chính - Kế toán",null,"MIS.DT005;Doanh thu hợp tác kinh doanh","MIS.DT005;Doanh thu hợp tác kinh doanh","MIS.DT005;Doanh thu hợp tác kinh doanh","XN04;Xí Nghiệp Dịch Vụ Vận Tải và Du Lịch",null,null,6,"91_","022_;Chi phí tài chính"]
[null,null,"S40;VT& Du lịch","VN03060000;SGB/HO/P. Kế hoạch đầu tư","VN03060000;SGB/HO/P. Kế hoạch đầu tư",null,"MIS.DT006;Doanh thu trông giữ xe","MIS.DT006;Doanh thu trông giữ xe","MIS.DT006;Doanh thu trông giữ xe","XN05;Xí Nghiệp Dịch Vụ Sửa Chữa Ô tô",null,null,9,"27_","025_;Chi phí bán hàng"]
[null,null,"S50;Bán lẻ xăng, dầu","VN03070000;SGB/Buýt/Vận tải Buýt","VN03070000;SGB/Buýt",null,"MIS.DT007;Doanh thu sửa chữa bảo dưỡng","MIS.DT007;Doanh thu sửa chữa bảo dưỡng","MIS.DT007;Doanh thu sửa chữa bảo dưỡng","XN06;Trung tâm giáo dục nghề nghiệp SaigonBus",null,null,12,"38_","026_;Chi phí quản lý"]
[null,null,"S60;Khác","VN03080000;SGB/Buýt/VT Du lịch","VN03070001;SGB/Buýt/An ninh an toàn",null,"MIS.DT008;Doanh thu bán phụ tùng","MIS.DT008;Doanh thu bán phụ tùng","MIS.DT008;Doanh thu bán phụ tùng","XN11;Cửa hàng Xăng dầu 500 Nguyễn Đình Chiểu",null,null,15,"45_","031_;Thu thập khác"]
[null,null,"S70;Thầu phụ","VN03090000;SGB/DV/TT GD NN Saigonbus","VN03070002;SGB/Buýt/Phổ Quang",null,"MIS.DT009;Doanh thu bán xăng dầu","MIS.DT009;Doanh thu bán xăng dầu","MIS.DT009;Doanh thu bán xăng dầu","XN12;Văn phòng công ty",null,null,18,"62_","032_;Chi phí khác"]
[null,null,null,"VN03100000;SGB/DV/TTSH LX Tân Bình","VN03070002;SGB/Buýt/Phổ Quang",null,"MIS.DT010;Doanh thu đào tạo lái xe","MIS.DT010;Doanh thu đào tạo lái xe","MIS.DT010;Doanh thu đào tạo lái xe","XN13;171 Điện Biên Phủ",null,null,21,"64_","110_;Tiền và các khoản tương đương tiền"]
[null,null,null,"VN03110000;SGB/DV/XN TMDV- Sửa chữa ô tô","VN03070002;SGB/Buýt/Phổ Quang",null,"MIS.DT011;Doanh thu sát hạch lái xe","MIS.DT011;Doanh thu sát hạch lái xe","MIS.DT011;Doanh thu sát hạch lái xe","XN14;Cửa hàng Xăng dầu 439 Phan Văn Trị",null,null,24,"93_","120_;Các khoản đầu tư tài chính ngắn hạn"]
[null,null,null,"VN03120000;SGB/DV/XN TMDV- Sửa chữa ô tô/Phòng kỹ thuật dịch vụ","VN03070002;SGB/Buýt/Phổ Quang",null,"MIS.DT012;Doanh thu cho thuê xe","MIS.DT012;Doanh thu cho thuê xe","MIS.DT012;Doanh thu cho thuê xe","XN15;Phòng tổng hợp",null,null,27,"139_","130_;Các khoản phải thu ngắn hạn"]
[null,null,null,"VN03130000;SGB/Buýt/Thầu phụ","VN03070003;SGB/Buýt/Lạc Long Quân",null,"MIS.DT013;Doanh thu hoạt động du lịch","MIS.DT013;Doanh thu hoạt động du lịch","MIS.DT013;Doanh thu hoạt động du lịch",null,null,null,30,"148_","140_;Hàng tồn kho"]
[null,null,null,null,"VN03080000;SGB/DV/VT Du lịch",null,"MIS.DT014;Doanh thu dịch vụ sạc pin","MIS.DT014;Doanh thu dịch vụ sạc pin","MIS.DT014;Doanh thu dịch vụ sạc pin",null,null,null,33,"1_","150_;Chi phí trả trước ngắn hạn"]
[null,null,null,null,"VN03080001;SGB/DV/VT Du lịch/Tuyến cố định",null,"MIS.DT015;Doanh thu dịch vụ khác","MIS.DT015;Doanh thu dịch vụ khác","MIS.DT015;Doanh thu dịch vụ khác",null,null,null,36,"4_","152_;Thuế GTGT được khấu trừ HĐKD"]
[null,null,null,null,"VN03080002;SGB/DV/VT Du lịch/Xe thuê",null,"MIS.CPNS01;CP lương chính","MIS.CPNS01;CP lương chính","MIS.CPNS01;CP lương chính",null,null,null,39,"15_","153_;Thuế GTGT được khấu trừ HĐĐT"]
[null,null,null,null,"VN03080003;SGB/DV/VT Du lịch/Lữ hành",null,"MIS.CPNS02;CP lương ngoài giờ","MIS.CPNS02;CP lương ngoài giờ","MIS.CPNS02;CP lương ngoài giờ",null,null,null,42,"43_","158_;Tài sản ngắn hạn khác"]
[null,null,null,null,"VN03090000;SGB/DV/TT GD NN Saigonbus",null,"MIS.CPNS03;CP lương tháng 13","MIS.CPNS03;CP lương tháng 13","MIS.CPNS03;CP lương tháng 13",null,null,null,null,"65_","210_;Các khoản phải thu dài hạn"]
[null,null,null,null,"VN03090001;SGB/DV/VT Du lịch/Tuyến cố định",null,"MIS.CPNS04;CP BHXH, BHYT, BHTN","MIS.CPNS04;CP BHXH, BHYT, BHTN","MIS.CPNS04;CP BHXH, BHYT, BHTN",null,null,null,null,"152_","220_;Tài sản cố định"]
[null,null,null,null,"VN03090002;SGB/DV/VT Du lịch/Xe thuê",null,"MIS.CPNS05;CP thưởng","MIS.CPNS05;CP thưởng","MIS.CPNS05;CP thưởng",null,null,null,null,"32V_","223_;Hao mòn TSCĐ"]
[null,null,null,null,"VN03090003;SGB/DV/VT Du lịch/Lữ hành",null,"MIS.CPNS06;CP nhân sự thuê ngoài, thời vụ","MIS.CPNS06;CP nhân sự thuê ngoài, thời vụ","MIS.CPNS06;CP nhân sự thuê ngoài, thời vụ",null,null,null,null,"148V_","231_;Bất động sản đầu tư"]
[null,null,null,null,"VN03090004;SGB/DV/VT Du lịch/MKT",null,"MIS.CPNS07;CP phúc lợi","MIS.CPNS07;CP phúc lợi","MIS.CPNS07;CP phúc lợi",null,null,null,null,"38V_","232_;Hao mòn BĐS đầu tư"]
[null,null,null,null,"VN03100000;SGB/DV/TTSH LX Tân Bình",null,"MIS.CPNS08;CP phụ cấp","MIS.CPNS08;CP phụ cấp","MIS.CPNS08;CP phụ cấp",null,null,null,null,"64V_","240_;Tài sản dở dang dài hạn"]
[null,null,null,null,"VN03110000;SGB/DV/XN TMDV - Sửa chữa ô tô",null,"MIS.CP001;CP nhiên liệu, năng lượng","MIS.CP001;CP nhiên liệu, năng lượng","MIS.CP001;CP nhiên liệu, năng lượng",null,null,null,null,"45V_","250_;Các khoản đầu tư tài chính dài hạn"]
[null,null,null,null,"VN03110001;SGB/DV/XN TMDV - Sửa chữa ô tô/SC xe buýt",null,"MIS.CP002;CP công nghệ thông tin","MIS.CP002;CP công nghệ thông tin","MIS.CP002;CP công nghệ thông tin",null,null,null,null,"140V_","260_;Tổng tài sản dài hạn khác"]
[null,null,null,null,"VN03110002;SGB/DV/XN TMDV - Sửa chữa ô tô/SC xe buýt điện",null,"MIS.CP003;CP điện thoại, internet","MIS.CP003;CP điện thoại, internet","MIS.CP003;CP điện thoại, internet",null,null,null,null,null,"269_;Lợi thế thương mại"]
[null,null,null,null,"VN03120000;SGB/DV/XN TMDV - Sửa chữa ô tô/Phòng kỹ thuật dịch vụ",null,"MIS.CP004;CP bảo dưỡng sửa chữa","MIS.CP004;CP bảo dưỡng sửa chữa","MIS.CP004;CP bảo dưỡng sửa chữa",null,null,null,null,null,"311_;Phải trả người bán ngắn hạn"]
[null,null,null,null,"VN03120001;SGB/DV/XN TMDV - Sửa chữa ô tô/Bán lẻ xăng dầu CH 500 NĐC",null,"MIS.CP005;CP PCCC, vật tư tiêu hao","MIS.CP005;CP PCCC, vật tư tiêu hao","MIS.CP005;CP PCCC, vật tư tiêu hao",null,null,null,null,null,"312_;Người mua trả tiền trước"]
[null,null,null,null,"VN03120002;SGB/DV/XN TMDV - Sửa chữa ô tô/KD khác",null,"MIS.CP006;CP cầu đường, bến bãi","MIS.CP006;CP cầu đường, bến bãi","MIS.CP006;CP cầu đường, bến bãi",null,null,null,null,null,"313_;Thuế và các khoản phải nộp NN"]
[null,null,null,null,"VN03120003;SGB/DV/XN TMDV - Sửa chữa ô tô/KD khác/Cho thuê địa điểm",null,"MIS.CP007;Phí bảo trì đường bộ","MIS.CP007;Phí bảo trì đường bộ","MIS.CP007;Phí bảo trì đường bộ",null,null,null,null,null,"314_;Phải trả nhân viên"]
[null,null,null,null,"VN03120004;SGB/DV/XN TMDV - Sửa chữa ô tô/KD khác/Trông giữ xe",null,"MIS.CP008;CP đăng kiểm","MIS.CP008;CP đăng kiểm","MIS.CP008;CP đăng kiểm",null,null,null,null,null,"315_;Chi phí phải trả ngắn hạn"]
[null,null,null,null,"VN03130000;SGB/Buýt/Thầu phụ",null,"MIS.CP009;CP bảo hiểm trách nhiệm dân sự","MIS.CP009;CP bảo hiểm trách nhiệm dân sự","MIS.CP009;CP bảo hiểm trách nhiệm dân sự",null,null,null,null,null,"318_;Doanh thu chưa thực hiện ngắn hạn"]
[null,null,null,null,null,null,"MIS.CP010;CP thuế đất phi nông nghiệp","MIS.CP010;CP thuế đất phi nông nghiệp","MIS.CP010;CP thuế đất phi nông nghiệp",null,null,null,null,null,"319_;Các khoản phải trả ngắn hạn khác"]
[null,null,null,null,null,null,"MIS.CP011;CP thuê địa điểm","MIS.CP011;CP thuê địa điểm","MIS.CP011;CP thuê địa điểm",null,null,null,null,null,"320_;Vay và nợ thuê tài chính ngắn hạn"]
[null,null,null,null,null,null,"MIS.CP012;CP bảo hiểm hành khách","MIS.CP012;CP bảo hiểm hành khách","MIS.CP012;CP bảo hiểm hành khách",null,null,null,null,null,"321_;Vay và nợ dài hạn đến hạn trả"]
[null,null,null,null,null,null,"MIS.CP013;CP bảo hiểm tài sản","MIS.CP013;CP bảo hiểm tài sản","MIS.CP013;CP bảo hiểm tài sản",null,null,null,null,null,"331_;Phải trả người bán dài hạn"]
[null,null,null,null,null,null,"MIS.CP014;CP bảo hiểm vật chất","MIS.CP014;CP bảo hiểm vật chất","MIS.CP014;CP bảo hiểm vật chất",null,null,null,null,null,"336_;Doanh thu chưa thực hiện dài hạn"]
[null,null,null,null,null,null,"MIS.CP015;CP in vé, thẻ","MIS.CP015;CP in vé, thẻ","MIS.CP015;CP in vé, thẻ",null,null,null,null,null,"338_;Vay và nợ thuê tài chính dài hạn"]
[null,null,null,null,null,null,"MIS.CP016;CP đền bù tổn thất","MIS.CP016;CP đền bù tổn thất","MIS.CP016;CP đền bù tổn thất",null,null,null,null,null,"342_;Dự phòng phải trả dài hạn"]
[null,null,null,null,null,null,"MIS.CP017;CP hỗ trợ, chăm sóc khách hàng","MIS.CP017;CP hỗ trợ, chăm sóc khách hàng","MIS.CP017;CP hỗ trợ, chăm sóc khách hàng",null,null,null,null,null,"350_;Nợ dài hạn khác"]
[null,null,null,null,null,null,"MIS.CP018;CP đồng phục","MIS.CP018;CP đồng phục","MIS.CP018;CP đồng phục",null,null,null,null,null,"411_;Vốn đầu tư của chủ sở hữu"]
[null,null,null,null,null,null,"MIS.CP019;CP thuê xe","MIS.CP019;CP thuê xe","MIS.CP019;CP thuê xe",null,null,null,null,null,"412_;Thặng dư vốn cổ phần"]
[null,null,null,null,null,null,"MIS.CP020;CP vận tải khác","MIS.CP020;CP vận tải khác","MIS.CP020;CP vận tải khác",null,null,null,null,null,"416_;Chênh lệch đánh giá lại tài sản"]
[null,null,null,null,null,null,"MIS.CP021;Giá vốn phụ tùng","MIS.CP021;Giá vốn phụ tùng","MIS.CP021;Giá vốn phụ tùng",null,null,null,null,null,"421_;Lợi nhuận sau thuế chưa phân phối"]
[null,null,null,null,null,null,"MIS.CP022;CP vật tư tiêu hao","MIS.CP022;CP vật tư tiêu hao","MIS.CP022;CP vật tư tiêu hao",null,null,null,null,null,"430_;Nguồn vốn khác"]
[null,null,null,null,null,null,"MIS.CP023;CP thuê ngoài gia công","MIS.CP023;CP thuê ngoài gia công","MIS.CP023;CP thuê ngoài gia công",null,null,null,null,null,"621_;Chi phí NPL trực tiếp"]
[null,null,null,null,null,null,"MIS.CP024;CP khác","MIS.CP024;CP khác","MIS.CP024;CP khác",null,null,null,null,null,"622_;Chi phí NC trực tiếp"]
[null,null,null,null,null,null,"MIS.CP025;CP S&M","MIS.CP025;CP S&M","MIS.CP025;CP S&M",null,null,null,null,null,"627_;Chi phí sản xuất chung"]
[null,null,null,null,null,null,"MIS.CP026;CP công tác (CTP, vé máy bay, khách sạn, taxi công tác)","MIS.CP026;CP công tác (CTP, vé máy bay, khách sạn, taxi công tác)","MIS.CP026;CP công tác (CTP, vé máy bay, khách sạn, taxi công tác)"]
[null,null,null,null,null,null,"MIS.CP027;CP công cụ dụng cụ vật tư tiêu hao khối hỗ trợ","MIS.CP027;CP công cụ dụng cụ vật tư tiêu hao khối hỗ trợ","MIS.CP027;CP công cụ dụng cụ vật tư tiêu hao khối hỗ trợ"]
[null,null,null,null,null,null,"MIS.CP028;CP vận chuyển, taxi","MIS.CP028;CP vận chuyển, taxi","MIS.CP028;CP vận chuyển, taxi"]
[null,null,null,null,null,null,"MIS.CP029;CP Tiếp khách","MIS.CP029;CP Tiếp khách","MIS.CP029;CP Tiếp khách"]
[null,null,null,null,null,null,"MIS.CP030;CP đào tạo","MIS.CP030;CP đào tạo","MIS.CP030;CP đào tạo"]
[null,null,null,null,null,null,"MIS.CP031;CP tuyển dụng","MIS.CP031;CP tuyển dụng","MIS.CP031;CP tuyển dụng"]
[null,null,null,null,null,null,"MIS.CP032;CP nhu yếu phẩm","MIS.CP032;CP nhu yếu phẩm","MIS.CP032;CP nhu yếu phẩm"]
[null,null,null,null,null,null,"MIS.CP033;CP văn phòng phẩm, hành chính","MIS.CP033;CP văn phòng phẩm, hành chính","MIS.CP033;CP văn phòng phẩm, hành chính"]
[null,null,null,null,null,null,"MIS.CP034;Phí ngân hàng","MIS.CP034;Phí ngân hàng","MIS.CP034;Phí ngân hàng"]
[null,null,null,null,null,null,"MIS.CP035;Thuế môn bài, thuế, Phí khác","MIS.CP035;Thuế môn bài, thuế, Phí khác","MIS.CP035;Thuế môn bài, thuế, Phí khác"]
[null,null,null,null,null,null,"MIS.CP036;CP chuyên gia, tư vấn","MIS.CP036;CP chuyên gia, tư vấn","MIS.CP036;CP chuyên gia, tư vấn"]
[null,null,null,null,null,null,"MIS.CP037;CP làm giấy phép, giấy tờ","MIS.CP037;CP làm giấy phép, giấy tờ","MIS.CP037;CP làm giấy phép, giấy tờ"]
[null,null,null,null,null,null,"MIS.CP038;CP dịch vụ mua ngoài","MIS.CP038;CP dịch vụ mua ngoài","MIS.CP038;CP dịch vụ mua ngoài"]
[null,null,null,null,null,null,"MIS.CP039;CP sửa chữa văn phòng","MIS.CP039;CP sửa chữa văn phòng","MIS.CP039;CP sửa chữa văn phòng"]
[null,null,null,null,null,null,"MIS.CP040;CP điện,nước","MIS.CP040;CP điện,nước","MIS.CP040;CP điện,nước"]
[null,null,null,null,null,null,"MIS.CPKH01;CP khấu hao phương tiện","MIS.CPKH01;CP khấu hao phương tiện","MIS.CPKH01;CP khấu hao phương tiện"]
[null,null,null,null,null,null,"MIS.CPKH02;CP khấu hao thiết bị văn phòng","MIS.CPKH02;CP khấu hao thiết bị văn phòng","MIS.CPKH02;CP khấu hao thiết bị văn phòng"]
[null,null,null,null,null,null,"MIS.CPKH03;CP khấu hao nhà xưởng","MIS.CPKH03;CP khấu hao nhà xưởng","MIS.CPKH03;CP khấu hao nhà xưởng"]
[null,null,null,null,null,null,"MIS.DTTC;Thu nhập tài chính","MIS.DTTC;Thu nhập tài chính","MIS.DTTC;Thu nhập tài chính"]
[null,null,null,null,null,null,"MIS.CPTC;Chi phí tài chính","MIS.CPTC;Chi phí tài chính","MIS.CPTC;Chi phí tài chính"]
[null,null,null,null,null,null,"MIS.DTK;Thu khác","MIS.DTK;Thu khác","MIS.DTK;Thu khác"]
[null,null,null,null,null,null,"MIS.CPK;CP khác","MIS.CPK;CP khác","MIS.CPK;CP khác"]
[null,null,null,null,null,null,null,null,"CT10;Số xe vận hành"]
[null,null,null,null,null,null,null,null,"CT27;Số xe vận hành quy đổi"]
[null,null,null,null,null,null,null,null,"CT40;Số km vận hành"]
[null,null,null,null,null,null,null,null,"CT71;Số học viên đào tạo A1"]
[null,null,null,null,null,null,null,null,"CT47;Số học viên đào tạo B2"]
[null,null,null,null,null,null,null,null,"CT61;Số học viên sát hạch A1"]
[null,null,null,null,null,null,null,null,"CT63;SL dầu diezel bán"]
[null,null,null,null,null,null,null,null,"CT45;SL xăng RON92 bán"]
[null,null,null,null,null,null,null,null,"CT52;SL xăng RON95 bán"]

{"sheet":"✗","index":1,"n_rows":15,"n_cols":2,"rows_kept":15,"cut":false,"hidden":true,"merged":[]}
[null,"Mã trùng"]
["Site",{"$f":"IFERROR(TRANSPOSE(_xlfn.LET(_xlpm.i,L_SI[Site],_xlfn._xlws.FILTER(_xlfn.UNIQUE(_xlpm.i),COUNTIFS(_xlpm.i,_xlfn.UNIQUE(_xlpm.i))>1))),0)","v":0}]
["Fund center",{"$f":"IFERROR(TRANSPOSE(_xlfn.LET(_xlpm.i,L_FC[Fund center],_xlfn._xlws.FILTER(_xlfn.UNIQUE(_xlpm.i),COUNTIFS(_xlpm.i,_xlfn.UNIQUE(_xlpm.i))>1))),0)","v":0}]
["Profit center",{"$f":"IFERROR(TRANSPOSE(_xlfn.LET(_xlpm.i,L_PC[Profit center],_xlfn._xlws.FILTER(_xlfn.UNIQUE(_xlpm.i),COUNTIFS(_xlpm.i,_xlfn.UNIQUE(_xlpm.i))>1))),0)","v":"VN03070002"}]
["{Cost center}",{"$f":"IFERROR(TRANSPOSE(_xlfn.LET(_xlpm.i,L_CC[Cost center],_xlfn._xlws.FILTER(_xlfn.UNIQUE(_xlpm.i),COUNTIFS(_xlpm.i,_xlfn.UNIQUE(_xlpm.i))>1))),0)","v":0}]
["MIS code",{"$f":"IFERROR(TRANSPOSE(_xlfn.LET(_xlpm.i,L_Mis[MIS code],_xlfn._xlws.FILTER(_xlfn.UNIQUE(_xlpm.i),COUNTIFS(_xlpm.i,_xlfn.UNIQUE(_xlpm.i))>1))),0)","v":0}]
["{Commit}",{"$f":"IFERROR(TRANSPOSE(_xlfn.LET(_xlpm.i,L_CI[CI code],_xlfn._xlws.FILTER(_xlfn.UNIQUE(_xlpm.i),COUNTIFS(_xlpm.i,_xlfn.UNIQUE(_xlpm.i))>1))),0)","v":0}]
["{Object}",{"$f":"IFERROR(TRANSPOSE(_xlfn.LET(_xlpm.i,L_OJ[Object],_xlfn._xlws.FILTER(_xlfn.UNIQUE(_xlpm.i),COUNTIFS(_xlpm.i,_xlfn.UNIQUE(_xlpm.i))>1))),0)","v":0}]
["Asset",{"$f":"IFERROR(TRANSPOSE(_xlfn.LET(_xlpm.i,L_AS[Asset type],_xlfn._xlws.FILTER(_xlfn.UNIQUE(_xlpm.i),COUNTIFS(_xlpm.i,_xlfn.UNIQUE(_xlpm.i))>1))),0)","v":0}]
["Statistic",{"$f":"IFERROR(TRANSPOSE(_xlfn.LET(_xlpm.i,L_ST[Statistics],_xlfn._xlws.FILTER(_xlfn.UNIQUE(_xlpm.i),COUNTIFS(_xlpm.i,_xlfn.UNIQUE(_xlpm.i))>1))),0)","v":0}]
["Financial",{"$f":"IFERROR(TRANSPOSE(_xlfn.LET(_xlpm.i,L_FS[FS code],_xlfn._xlws.FILTER(_xlfn.UNIQUE(_xlpm.i),COUNTIFS(_xlpm.i,_xlfn.UNIQUE(_xlpm.i))>1))),0)","v":0}]
["Trust",{"$f":"IFERROR(TRANSPOSE(_xlfn.LET(_xlpm.i,L_TR[Trust],_xlfn._xlws.FILTER(_xlfn.UNIQUE(_xlpm.i),COUNTIFS(_xlpm.i,_xlfn.UNIQUE(_xlpm.i))>1))),0)","v":0}]
["Sub",{"$f":"IFERROR(TRANSPOSE(_xlfn.LET(_xlpm.i,L_SUB[Sub code],_xlfn._xlws.FILTER(_xlfn.UNIQUE(_xlpm.i),COUNTIFS(_xlpm.i,_xlfn.UNIQUE(_xlpm.i))>1))),0)","v":0}]
["Fund",{"$f":"IFERROR(TRANSPOSE(_xlfn.LET(_xlpm.i,L_FC[Fund center],_xlfn._xlws.FILTER(_xlfn.UNIQUE(_xlpm.i),COUNTIFS(_xlpm.i,_xlfn.UNIQUE(_xlpm.i))>1))),0)","v":0}]
["Other"]

{"sheet":"Site","index":2,"n_rows":32,"n_cols":9,"rows_kept":32,"cut":false,"hidden":false,"merged":[]}
[]
["𝓢𝓪𝓲𝓰𝓸𝓷",null,"SITE (CƠ SỞ KINH DOANH)",null,"Là địa điểm cụ thể nơi doanh nghiệp hoạt động, có thể là nhà máy, cửa hàng, văn phòng hoặc chi nhánh, depot"]
["𝓑𝓾𝓼"]
[]
[null,"_","Site","Name","Properties","#","_","Lồng","Trùng"]
["Site",null,"_","_",null,null,null,{"$f":"_Integrate(L_SI[Site])","v":"null"},{"$f":"_Duplicate(L_SI[Site])","v":"null"}]
[null,null,"HO","Head Office",null,1]
["Fund center",null,"S10","Bảo dưỡng sửa chữa",null,2]
[null,null,"S20","GDNN&SHLX",null,3]
["Profit center",null,"S30","Buýt",null,4]
[null,null,"S40","VT& Du lịch",null,5]
["Cost center",null,"S50","Bán lẻ xăng, dầu",null,6]
[null,null,"S60","Khác",null,7]
["MIS code",null,"S70","Thầu phụ",null,8]
[]
["Commit"]
[]
["Object"]
[]
["Asset"]
[]
["Statistic"]
[]
["Financial"]
[]
["Trust"]
[]
["Sub"]
[]
["Fund"]
[]
["Other"]

{"sheet":"Fund center","index":3,"n_rows":32,"n_cols":10,"rows_kept":32,"cut":false,"hidden":false,"merged":[]}
[{"$f":"Range2(L_FC[Site])","v":"E6:E18"}]
[{"$f":"Site!A2","v":"𝓢𝓪𝓲𝓰𝓸𝓷"},null,"FUND CENTER (KHỐI LẬP NGÂN SÁCH)",null,"Trong các công ty có quy mô lớn, việc chia thành các khối ngân sách sẽ giúp việc điều phối lập và quản lý ngân sách hiệu quả hơn. Fund center mang ý nghĩa phân công, tổ chức lập và quản lý ngân sách."]
[{"$f":"Site!A3","v":"𝓑𝓾𝓼"},null,null,null,"Thường hay thấy nhất là ở khối HO chia các nhóm bộ phận chuyên môn thành các khối, trong khi ở các cơ sở vận hành thì cơ sở đó cũng đồng thời là một khối. "]
[]
[null,"_","Fund center","FC name","Site","Properties","#","_","Lồng","Trùng"]
["Site",null,"VN03010000","SGB/HO/HĐQT",null,null,1,null,{"$f":"_Integrate(L_FC[Fund center])","v":"null"},{"$f":"_Duplicate(L_FC[Fund center])","v":"null"}]
[null,null,"VN03020000","SGB/HO/Ban kiểm soát",null,null,2]
["Fund center",null,"VN03030000","SGB/HO/Ban Tổng giám đốc",null,null,3]
[null,null,"VN03040000","SGB/HO/P. Tổ chức - Hành chính",null,null,4]
["Profit center",null,"VN03050000","SGB/HO/P. Tài chính - Kế toán",null,null,5]
[null,null,"VN03060000","SGB/HO/P. Kế hoạch đầu tư",null,null,6]
["Cost center",null,"VN03070000","SGB/Buýt/Vận tải Buýt",null,null,7]
[null,null,"VN03080000","SGB/Buýt/VT Du lịch",null,null,8]
["MIS code",null,"VN03090000","SGB/DV/TT GD NN Saigonbus",null,null,9]
[null,null,"VN03100000","SGB/DV/TTSH LX Tân Bình",null,null,10]
["Commit",null,"VN03110000","SGB/DV/XN TMDV- Sửa chữa ô tô",null,null,11]
[null,null,"VN03120000","SGB/DV/XN TMDV- Sửa chữa ô tô/Phòng kỹ thuật dịch vụ",null,null,12]
["Object",null,"VN03130000","SGB/Buýt/Thầu phụ",null,null,13]
[]
["Asset"]
[]
["Statistic"]
[]
["Financial"]
[]
["Trust"]
[]
["Sub"]
[]
["Fund"]
[]
["Other"]

{"sheet":"Profit center","index":4,"n_rows":37,"n_cols":10,"rows_kept":37,"cut":false,"hidden":false,"merged":[]}
[{"$f":"Range2(L_PC[Site])","v":"E6:E37"}]
[{"$f":"Site!A2","v":"𝓢𝓪𝓲𝓰𝓸𝓷"},null,"PROFIT CENTER (TRUNG TÂM LỢI NHUẬN)",null,null,"Đơn vị trong doanh nghiệp có trách nhiệm tạo ra doanh thu và lợi nhuận, có ranh giới về doanh thu- chi phí có thể phân tách được, để quản trị và phân tích kinh doanh. Profit center được hình thành bằng cách nhóm các cost-center"]
[{"$f":"Site!A3","v":"𝓑𝓾𝓼"},null,null,null,null,"Profit center là mã để tổng hợp ngân sách theo chiều bộ phận, không phải mã để lập ngân sách."]
[]
[null,"_","Profit center","PC name","Site","Properties","#","_","Lồng","Trùng"]
["Site",null,"VN03010000",{"$f":"_xlfn.XLOOKUP(L_PC[[#This Row],[Profit center]],L_CC[Cost center],L_CC[CC name])","v":"SGB/HO/HĐQT"},{"$f":"_xlfn.XLOOKUP(L_PC[[#This Row],[Profit center]],L_CC[Cost center],L_CC[Site])","v":"HO"},null,1,null,{"$f":"_Integrate(L_PC[Profit center])","v":"null"},{"$f":"_Duplicate(L_PC[Profit center])","v":"VN03070002"}]
[null,null,"VN03020000",{"$f":"_xlfn.XLOOKUP(L_PC[[#This Row],[Profit center]],L_CC[Cost center],L_CC[CC name])","v":"SGB/HO/Ban kiểm soát"},{"$f":"_xlfn.XLOOKUP(L_PC[[#This Row],[Profit center]],L_CC[Cost center],L_CC[Site])","v":"HO"},null,2]
["Fund center",null,"VN03030000",{"$f":"_xlfn.XLOOKUP(L_PC[[#This Row],[Profit center]],L_CC[Cost center],L_CC[CC name])","v":"SGB/HO/Ban Tổng Giám đốc"},{"$f":"_xlfn.XLOOKUP(L_PC[[#This Row],[Profit center]],L_CC[Cost center],L_CC[Site])","v":"HO"},null,3]
[null,null,"VN03040000",{"$f":"_xlfn.XLOOKUP(L_PC[[#This Row],[Profit center]],L_CC[Cost center],L_CC[CC name])","v":"SGB/HO/P. Tổ chức - Hành chính"},{"$f":"_xlfn.XLOOKUP(L_PC[[#This Row],[Profit center]],L_CC[Cost center],L_CC[Site])","v":"HO"},null,4]
["Profit center",null,"VN03050000",{"$f":"_xlfn.XLOOKUP(L_PC[[#This Row],[Profit center]],L_CC[Cost center],L_CC[CC name])","v":"SGB/HO/P. Tài chính - Kế toán"},{"$f":"_xlfn.XLOOKUP(L_PC[[#This Row],[Profit center]],L_CC[Cost center],L_CC[Site])","v":"HO"},null,5]
[null,null,"VN03060000",{"$f":"_xlfn.XLOOKUP(L_PC[[#This Row],[Profit center]],L_CC[Cost center],L_CC[CC name])","v":"SGB/HO/P. Kế hoạch đầu tư"},{"$f":"_xlfn.XLOOKUP(L_PC[[#This Row],[Profit center]],L_CC[Cost center],L_CC[Site])","v":"HO"},null,6]
["Cost center",null,"VN03070000",{"$f":"_xlfn.XLOOKUP(L_PC[[#This Row],[Profit center]],L_CC[Cost center],L_CC[CC name])","v":"SGB/Buýt"},{"$f":"_xlfn.XLOOKUP(L_PC[[#This Row],[Profit center]],L_CC[Cost center],L_CC[Site])","v":"S30"},null,7]
[null,null,"VN03070001",{"$f":"_xlfn.XLOOKUP(L_PC[[#This Row],[Profit center]],L_CC[Cost center],L_CC[CC name])","v":"SGB/Buýt/An ninh an toàn"},{"$f":"_xlfn.XLOOKUP(L_PC[[#This Row],[Profit center]],L_CC[Cost center],L_CC[Site])","v":"S30"},null,8]
["MIS code",null,"VN03070002",{"$f":"_xlfn.XLOOKUP(L_PC[[#This Row],[Profit center]],L_CC[Cost center],L_CC[CC name])","v":"SGB/Buýt/Phổ Quang"},{"$f":"_xlfn.XLOOKUP(L_PC[[#This Row],[Profit center]],L_CC[Cost center],L_CC[Site])","v":"S30"},null,9]
[null,null,"VN03070002",{"$f":"_xlfn.XLOOKUP(L_PC[[#This Row],[Profit center]],L_CC[Cost center],L_CC[CC name])","v":"SGB/Buýt/Phổ Quang"},{"$f":"_xlfn.XLOOKUP(L_PC[[#This Row],[Profit center]],L_CC[Cost center],L_CC[Site])","v":"S30"},null,10]
["Commit",null,"VN03070002",{"$f":"_xlfn.XLOOKUP(L_PC[[#This Row],[Profit center]],L_CC[Cost center],L_CC[CC name])","v":"SGB/Buýt/Phổ Quang"},{"$f":"_xlfn.XLOOKUP(L_PC[[#This Row],[Profit center]],L_CC[Cost center],L_CC[Site])","v":"S30"},null,11]
[null,null,"VN03070002",{"$f":"_xlfn.XLOOKUP(L_PC[[#This Row],[Profit center]],L_CC[Cost center],L_CC[CC name])","v":"SGB/Buýt/Phổ Quang"},{"$f":"_xlfn.XLOOKUP(L_PC[[#This Row],[Profit center]],L_CC[Cost center],L_CC[Site])","v":"S30"},null,12]
["Object",null,"VN03070003",{"$f":"_xlfn.XLOOKUP(L_PC[[#This Row],[Profit center]],L_CC[Cost center],L_CC[CC name])","v":"SGB/Buýt/Lạc Long Quân"},{"$f":"_xlfn.XLOOKUP(L_PC[[#This Row],[Profit center]],L_CC[Cost center],L_CC[Site])","v":"S30"},null,13]
[null,null,"VN03080000",{"$f":"_xlfn.XLOOKUP(L_PC[[#This Row],[Profit center]],L_CC[Cost center],L_CC[CC name])","v":"SGB/DV/VT Du lịch"},{"$f":"_xlfn.XLOOKUP(L_PC[[#This Row],[Profit center]],L_CC[Cost center],L_CC[Site])","v":"S40"},null,14]
["Asset",null,"VN03080001",{"$f":"_xlfn.XLOOKUP(L_PC[[#This Row],[Profit center]],L_CC[Cost center],L_CC[CC name])","v":"SGB/DV/VT Du lịch/Tuyến cố định"},{"$f":"_xlfn.XLOOKUP(L_PC[[#This Row],[Profit center]],L_CC[Cost center],L_CC[Site])","v":"S40"},null,15]
[null,null,"VN03080002",{"$f":"_xlfn.XLOOKUP(L_PC[[#This Row],[Profit center]],L_CC[Cost center],L_CC[CC name])","v":"SGB/DV/VT Du lịch/Xe thuê"},{"$f":"_xlfn.XLOOKUP(L_PC[[#This Row],[Profit center]],L_CC[Cost center],L_CC[Site])","v":"S40"},null,16]
["Statistic",null,"VN03080003",{"$f":"_xlfn.XLOOKUP(L_PC[[#This Row],[Profit center]],L_CC[Cost center],L_CC[CC name])","v":"SGB/DV/VT Du lịch/Lữ hành"},{"$f":"_xlfn.XLOOKUP(L_PC[[#This Row],[Profit center]],L_CC[Cost center],L_CC[Site])","v":"S40"},null,17]
[null,null,"VN03090000",{"$f":"_xlfn.XLOOKUP(L_PC[[#This Row],[Profit center]],L_CC[Cost center],L_CC[CC name])","v":"SGB/DV/TT GD NN Saigonbus"},{"$f":"_xlfn.XLOOKUP(L_PC[[#This Row],[Profit center]],L_CC[Cost center],L_CC[Site])","v":"S20"},null,18]
["Financial",null,"VN03090001",{"$f":"_xlfn.XLOOKUP(L_PC[[#This Row],[Profit center]],L_CC[Cost center],L_CC[CC name])","v":"SGB/DV/VT Du lịch/Tuyến cố định"},{"$f":"_xlfn.XLOOKUP(L_PC[[#This Row],[Profit center]],L_CC[Cost center],L_CC[Site])","v":"S20"},null,19]
[null,null,"VN03090002",{"$f":"_xlfn.XLOOKUP(L_PC[[#This Row],[Profit center]],L_CC[Cost center],L_CC[CC name])","v":"SGB/DV/VT Du lịch/Xe thuê"},{"$f":"_xlfn.XLOOKUP(L_PC[[#This Row],[Profit center]],L_CC[Cost center],L_CC[Site])","v":"S20"},null,20]
["Trust",null,"VN03090003",{"$f":"_xlfn.XLOOKUP(L_PC[[#This Row],[Profit center]],L_CC[Cost center],L_CC[CC name])","v":"SGB/DV/VT Du lịch/Lữ hành"},{"$f":"_xlfn.XLOOKUP(L_PC[[#This Row],[Profit center]],L_CC[Cost center],L_CC[Site])","v":"S20"},null,21]
[null,null,"VN03090004",{"$f":"_xlfn.XLOOKUP(L_PC[[#This Row],[Profit center]],L_CC[Cost center],L_CC[CC name])","v":"SGB/DV/VT Du lịch/MKT"},{"$f":"_xlfn.XLOOKUP(L_PC[[#This Row],[Profit center]],L_CC[Cost center],L_CC[Site])","v":"S20"},null,22]
["Sub",null,"VN03100000",{"$f":"_xlfn.XLOOKUP(L_PC[[#This Row],[Profit center]],L_CC[Cost center],L_CC[CC name])","v":"SGB/DV/TTSH LX Tân Bình"},{"$f":"_xlfn.XLOOKUP(L_PC[[#This Row],[Profit center]],L_CC[Cost center],L_CC[Site])","v":"S20"},null,23]
[null,null,"VN03110000",{"$f":"_xlfn.XLOOKUP(L_PC[[#This Row],[Profit center]],L_CC[Cost center],L_CC[CC name])","v":"SGB/DV/XN TMDV - Sửa chữa ô tô"},{"$f":"_xlfn.XLOOKUP(L_PC[[#This Row],[Profit center]],L_CC[Cost center],L_CC[Site])","v":"S10"},null,24]
["Fund",null,"VN03110001",{"$f":"_xlfn.XLOOKUP(L_PC[[#This Row],[Profit center]],L_CC[Cost center],L_CC[CC name])","v":"SGB/DV/XN TMDV - Sửa chữa ô tô/SC xe buýt"},{"$f":"_xlfn.XLOOKUP(L_PC[[#This Row],[Profit center]],L_CC[Cost center],L_CC[Site])","v":"S10"},null,25]
[null,null,"VN03110002",{"$f":"_xlfn.XLOOKUP(L_PC[[#This Row],[Profit center]],L_CC[Cost center],L_CC[CC name])","v":"SGB/DV/XN TMDV - Sửa chữa ô tô/SC xe buýt điện"},{"$f":"_xlfn.XLOOKUP(L_PC[[#This Row],[Profit center]],L_CC[Cost center],L_CC[Site])","v":"S10"},null,26]
["Other",null,"VN03120000",{"$f":"_xlfn.XLOOKUP(L_PC[[#This Row],[Profit center]],L_CC[Cost center],L_CC[CC name])","v":"SGB/DV/XN TMDV - Sửa chữa ô tô/Phòng kỹ thuật dịch vụ"},{"$f":"_xlfn.XLOOKUP(L_PC[[#This Row],[Profit center]],L_CC[Cost center],L_CC[Site])","v":"S10"},null,27]
[null,null,"VN03120001",{"$f":"_xlfn.XLOOKUP(L_PC[[#This Row],[Profit center]],L_CC[Cost center],L_CC[CC name])","v":"SGB/DV/XN TMDV - Sửa chữa ô tô/Bán lẻ xăng dầu CH 500 NĐC"},{"$f":"_xlfn.XLOOKUP(L_PC[[#This Row],[Profit center]],L_CC[Cost center],L_CC[Site])","v":"S50"},null,28]
[null,null,"VN03120002",{"$f":"_xlfn.XLOOKUP(L_PC[[#This Row],[Profit center]],L_CC[Cost center],L_CC[CC name])","v":"SGB/DV/XN TMDV - Sửa chữa ô tô/KD khác"},{"$f":"_xlfn.XLOOKUP(L_PC[[#This Row],[Profit center]],L_CC[Cost center],L_CC[Site])","v":"S60"},null,29]
[null,null,"VN03120003",{"$f":"_xlfn.XLOOKUP(L_PC[[#This Row],[Profit center]],L_CC[Cost center],L_CC[CC name])","v":"SGB/DV/XN TMDV - Sửa chữa ô tô/KD khác/Cho thuê địa điểm"},{"$f":"_xlfn.XLOOKUP(L_PC[[#This Row],[Profit center]],L_CC[Cost center],L_CC[Site])","v":"S60"},null,30]
[null,null,"VN03120004",{"$f":"_xlfn.XLOOKUP(L_PC[[#This Row],[Profit center]],L_CC[Cost center],L_CC[CC name])","v":"SGB/DV/XN TMDV - Sửa chữa ô tô/KD khác/Trông giữ xe"},{"$f":"_xlfn.XLOOKUP(L_PC[[#This Row],[Profit center]],L_CC[Cost center],L_CC[Site])","v":"S60"},null,31]
[null,null,"VN03130000",{"$f":"_xlfn.XLOOKUP(L_PC[[#This Row],[Profit center]],L_CC[Cost center],L_CC[CC name])","v":"SGB/Buýt/Thầu phụ"},{"$f":"_xlfn.XLOOKUP(L_PC[[#This Row],[Profit center]],L_CC[Cost center],L_CC[Site])","v":"S70"},null,32]

{"sheet":"Cost center","index":5,"n_rows":36,"n_cols":18,"rows_kept":36,"cut":false,"hidden":false,"merged":[]}
[{"$f":"Range2(L_CC[[Site]:[Priority CI]])","v":"E6:I36"}]
[{"$f":"Site!A2","v":"𝓢𝓪𝓲𝓰𝓸𝓷"},null,"COST CENTER (BỘ PHẬN NGÂN SÁCH)",null,"Là bộ phận phát sinh chi phí trong doanh nghiệp, thông thường được thiết lập gắn liền với bộ phận theo tổ chức của doanh nghiệp để thuận tiện lập và quản lý ngân sách. Cost center mang ý nghĩa là bộ phận (center) hơn nghĩa chi phí (cost), nên nó cũng được sử dụng để ghi nhận doanh thu"]
[{"$f":"Site!A3","v":"𝓑𝓾𝓼"},null,null,null,"Cost center là mã bắt buộc, là mã được sử dụng để lập ngân sách."]
[null,null,null,null,"⏬","⏬","⏬","⏬","⏬"]
[null,"_","Cost center","CC name","Site","Fund center","PC center","FS code","Priority CI","Faculty","Properties","#","_","FC name","PC name","FS name","Lồng","Trùng"]
["Site",null,"VN03010000","SGB/HO/HĐQT","HO","VN03010000","VN03010000","026_",null,null,null,1,null,{"$f":"_xlfn.XLOOKUP(L_CC[Fund center],L_FC[Fund center],L_FC[FC name],\"-\")","v":"SGB/HO/HĐQT"},{"$f":"_xlfn.XLOOKUP(L_CC[PC center],L_PC[Profit center],L_PC[PC name],\"-\")","v":"SGB/HO/HĐQT"},{"$f":"_xlfn.XLOOKUP(L_CC[FS code],L_FS[FS code],L_FS[FS name],\"-\")","v":"Chi phí quản lý"},{"$f":"_Integrate(L_CC[Cost center])","v":"null"},{"$f":"_Duplicate(L_CC[Cost center])","v":"null"}]
[null,null,"VN03020000","SGB/HO/Ban kiểm soát","HO","VN03020000","VN03020000","026_",null,null,null,2,null,"SGB/HO/Ban kiểm soát","SGB/HO/Ban kiểm soát","Chi phí quản lý"]
["Fund center",null,"VN03030000","SGB/HO/Ban Tổng Giám đốc","HO","VN03030000","VN03030000","026_",null,null,null,3,null,"SGB/HO/Ban Tổng giám đốc","SGB/HO/Ban Tổng Giám đốc","Chi phí quản lý"]
[null,null,"VN03040000","SGB/HO/P. Tổ chức - Hành chính","HO","VN03040000","VN03040000","026_",null,null,null,4,null,"SGB/HO/P. Tổ chức - Hành chính","SGB/HO/P. Tổ chức - Hành chính","Chi phí quản lý"]
["Profit center",null,"VN03050000","SGB/HO/P. Tài chính - Kế toán","HO","VN03050000","VN03050000","026_",null,null,null,5,null,"SGB/HO/P. Tài chính - Kế toán","SGB/HO/P. Tài chính - Kế toán","Chi phí quản lý"]
[null,null,"VN03060000","SGB/HO/P. Kế hoạch đầu tư","HO","VN03060000","VN03060000","026_",null,null,null,6,null,"SGB/HO/P. Kế hoạch đầu tư","SGB/HO/P. Kế hoạch đầu tư","Chi phí quản lý"]
["Cost center",null,"VN03070000","SGB/Buýt","S30","VN03070000","VN03070000","011_",null,null,null,7,null,"SGB/Buýt/Vận tải Buýt","SGB/Buýt","Giá vốn hàng bán"]
[null,null,"VN03070001","SGB/Buýt/An ninh an toàn","S30","VN03070000","VN03070000","011_",null,null,null,8,null,"SGB/Buýt/Vận tải Buýt","SGB/Buýt","Giá vốn hàng bán"]
["MIS code",null,"VN03070002","SGB/Buýt/Phổ Quang","S30","VN03070000","VN03070000","011_",null,null,null,9,null,"SGB/Buýt/Vận tải Buýt","SGB/Buýt","Giá vốn hàng bán"]
[null,null,"VN03070003","SGB/Buýt/Lạc Long Quân","S30","VN03070000","VN03070000","011_",null,null,null,10,null,"SGB/Buýt/Vận tải Buýt","SGB/Buýt","Giá vốn hàng bán"]
["Commit",null,"VN03080000","SGB/DV/VT Du lịch","S40","VN03080000","VN03080000","011_",null,null,null,11,null,"SGB/Buýt/VT Du lịch","SGB/DV/VT Du lịch","Giá vốn hàng bán"]
[null,null,"VN03080001","SGB/DV/VT Du lịch/Tuyến cố định","S40","VN03080000","VN03080000","011_",null,null,null,12,null,"SGB/Buýt/VT Du lịch","SGB/DV/VT Du lịch","Giá vốn hàng bán"]
["Object",null,"VN03080002","SGB/DV/VT Du lịch/Xe thuê","S40","VN03090000","VN03090000","011_",null,null,null,13,null,"SGB/DV/TT GD NN Saigonbus","SGB/DV/TT GD NN Saigonbus","Giá vốn hàng bán"]
[null,null,"VN03080003","SGB/DV/VT Du lịch/Lữ hành","S40","VN03080000","VN03080000","011_",null,null,null,14,null,"SGB/Buýt/VT Du lịch","SGB/DV/VT Du lịch","Giá vốn hàng bán"]
["Asset",null,"VN03080004","SGB/DV/VT Du lịch/MKT","S40","VN03080000","VN03080000","011_",null,null,null,15,null,"SGB/Buýt/VT Du lịch","SGB/DV/VT Du lịch","Giá vốn hàng bán"]
[null,null,"VN03090000","SGB/DV/TT GD NN Saigonbus","S20","VN03090000","VN03090000","011_",null,null,null,16,null,"SGB/DV/TT GD NN Saigonbus","SGB/DV/TT GD NN Saigonbus","Giá vốn hàng bán"]
["Statistic",null,"VN03090001","SGB/DV/VT Du lịch/Tuyến cố định","S20","VN03090001","VN03090001","011_",null,null,null,17,null,"-","SGB/DV/VT Du lịch/Tuyến cố định","Giá vốn hàng bán"]
[null,null,"VN03090002","SGB/DV/VT Du lịch/Xe thuê","S20","VN03090002","VN03090002","011_",null,null,null,18,null,"-","SGB/DV/VT Du lịch/Xe thuê","Giá vốn hàng bán"]
["Financial",null,"VN03090003","SGB/DV/VT Du lịch/Lữ hành","S20","VN03090003","VN03090003","011_",null,null,null,19,null,"-","SGB/DV/VT Du lịch/Lữ hành","Giá vốn hàng bán"]
[null,null,"VN03090004","SGB/DV/VT Du lịch/MKT","S20","VN03090004","VN03090004","011_",null,null,null,20,null,"-","SGB/DV/VT Du lịch/MKT","Giá vốn hàng bán"]
["Trust",null,"VN03100000","SGB/DV/TTSH LX Tân Bình","S20","VN03100000","VN03100000","011_",null,null,null,21,null,"SGB/DV/TTSH LX Tân Bình","SGB/DV/TTSH LX Tân Bình","Giá vốn hàng bán"]
[null,null,"VN03110000","SGB/DV/XN TMDV - Sửa chữa ô tô","S10","VN03110000","VN03110000","011_",null,null,null,22,null,"SGB/DV/XN TMDV- Sửa chữa ô tô","SGB/DV/XN TMDV - Sửa chữa ô tô","Giá vốn hàng bán"]
["Sub",null,"VN03110001","SGB/DV/XN TMDV - Sửa chữa ô tô/SC xe buýt","S10","VN03110000","VN03110000","011_",null,null,null,23,null,"SGB/DV/XN TMDV- Sửa chữa ô tô","SGB/DV/XN TMDV - Sửa chữa ô tô","Giá vốn hàng bán"]
[null,null,"VN03110002","SGB/DV/XN TMDV - Sửa chữa ô tô/SC xe buýt điện","S10","VN03110000","VN03110000","011_",null,null,null,24,null,"SGB/DV/XN TMDV- Sửa chữa ô tô","SGB/DV/XN TMDV - Sửa chữa ô tô","Giá vốn hàng bán"]
["Fund",null,"VN03120000","SGB/DV/XN TMDV - Sửa chữa ô tô/Phòng kỹ thuật dịch vụ","S10","VN03120000","VN03120000","011_",null,null,null,25,null,"SGB/DV/XN TMDV- Sửa chữa ô tô/Phòng kỹ thuật dịch vụ","SGB/DV/XN TMDV - Sửa chữa ô tô/Phòng kỹ thuật dịch vụ","Giá vốn hàng bán"]
[null,null,"VN03120001","SGB/DV/XN TMDV - Sửa chữa ô tô/Bán lẻ xăng dầu CH 500 NĐC","S50","VN03120000","VN03120000","011_",null,null,null,26,null,"SGB/DV/XN TMDV- Sửa chữa ô tô/Phòng kỹ thuật dịch vụ","SGB/DV/XN TMDV - Sửa chữa ô tô/Phòng kỹ thuật dịch vụ","Giá vốn hàng bán"]
["Other",null,"VN03120002","SGB/DV/XN TMDV - Sửa chữa ô tô/KD khác","S60","VN03120000","VN03120000","011_",null,null,null,27,null,"SGB/DV/XN TMDV- Sửa chữa ô tô/Phòng kỹ thuật dịch vụ","SGB/DV/XN TMDV - Sửa chữa ô tô/Phòng kỹ thuật dịch vụ","Giá vốn hàng bán"]
[null,null,"VN03120003","SGB/DV/XN TMDV - Sửa chữa ô tô/KD khác/Cho thuê địa điểm","S60","VN03120000","VN03120000","011_",null,null,null,28,null,"SGB/DV/XN TMDV- Sửa chữa ô tô/Phòng kỹ thuật dịch vụ","SGB/DV/XN TMDV - Sửa chữa ô tô/Phòng kỹ thuật dịch vụ","Giá vốn hàng bán"]
[null,null,"VN03120004","SGB/DV/XN TMDV - Sửa chữa ô tô/KD khác/Trông giữ xe","S60","VN03120000","VN03120000","011_",null,null,null,29,null,"SGB/DV/XN TMDV- Sửa chữa ô tô/Phòng kỹ thuật dịch vụ","SGB/DV/XN TMDV - Sửa chữa ô tô/Phòng kỹ thuật dịch vụ","Giá vốn hàng bán"]
[null,null,"VN03120005","SGB/DV/XN TMDV - Sửa chữa ô tô/KD khác/Hoa hồng hợp tác KD","S60","VN03120000","VN03120000","011_",null,null,null,30,null,"SGB/DV/XN TMDV- Sửa chữa ô tô/Phòng kỹ thuật dịch vụ","SGB/DV/XN TMDV - Sửa chữa ô tô/Phòng kỹ thuật dịch vụ","Giá vốn hàng bán"]
[null,null,"VN03130000","SGB/Buýt/Thầu phụ","S70","VN03130000","VN03130000","011_",null,null,null,31,null,"SGB/Buýt/Thầu phụ","SGB/Buýt/Thầu phụ","Giá vốn hàng bán"]

{"sheet":"MIS code","index":6,"n_rows":75,"n_cols":11,"rows_kept":75,"cut":false,"hidden":false,"merged":[]}
[{"$f":"Range2(L_Mis[Allocate])","v":"E6:E75"}]
[{"$f":"Site!A2","v":"𝓢𝓪𝓲𝓰𝓸𝓷"},null,"MIS CODE (MÃ LẬP BÁO CÁO QUẢN TRỊ)",null,"Là danh mục mã được phân loại để tổng hợp trình bày số liệu kết quả kinh doanh quản trị."]
[{"$f":"Site!A3","v":"𝓑𝓾𝓼"},null,null,null,"MIS code là để tổng hợp ngân sách theo chiều khoản mục, không phải là mã để lập ngân sách. Mã MIS được tính từ mã Commit (CI). Trường hợp đơn giản có thể map 1 mã MIS = 1 mã CI"]
[null,null,{"$f":"[1]!RandBetweenExclude(100,999,L_Mis[MIS code])","v":706},null,"⏬"]
[null,"_","MIS code","MIS name","Allocate","Properties","#","_","Lồng","Trùng","Trùng"]
["Site",null,"MIS.DT001","Doanh thu bán vé",null,null,1,null,{"$f":"_Integrate(L_Mis[MIS code])","v":"MIS.CPK"},{"$f":"_Duplicate(L_Mis[MIS code])","v":"null"},{"$f":"_Duplicate(L_Mis[MIS code])","v":"null"}]
[null,null,"MIS.DT002","Doanh thu trợ giá ",null,null,2]
["Fund center",null,"MIS.DT003","Doanh thu quảng cáo",null,null,3]
[null,null,"MIS.DT004","Doanh thu cho thuê tài sản",null,null,4]
["Profit center",null,"MIS.DT005","Doanh thu hợp tác kinh doanh",null,null,5]
[null,null,"MIS.DT006","Doanh thu trông giữ xe",null,null,6]
["Cost center",null,"MIS.DT007","Doanh thu sửa chữa bảo dưỡng",null,null,7]
[null,null,"MIS.DT008","Doanh thu bán phụ tùng",null,null,8]
["MIS code",null,"MIS.DT009","Doanh thu bán xăng dầu",null,null,9]
[null,null,"MIS.DT010","Doanh thu đào tạo lái xe",null,null,10]
["Commit",null,"MIS.DT011","Doanh thu sát hạch lái xe",null,null,11]
[null,null,"MIS.DT012","Doanh thu cho thuê xe",null,null,12]
["Object",null,"MIS.DT013","Doanh thu hoạt động du lịch",null,null,13]
[null,null,"MIS.DT014","Doanh thu dịch vụ sạc pin",null,null,14]
["Asset",null,"MIS.DT015","Doanh thu dịch vụ khác",null,null,15]
[null,null,"MIS.CPNS01","CP lương chính",null,null,16]
["Statistic",null,"MIS.CPNS02","CP lương ngoài giờ",null,null,17]
[null,null,"MIS.CPNS03","CP lương tháng 13",null,null,18]
["Financial",null,"MIS.CPNS04","CP BHXH, BHYT, BHTN",null,null,19]
[null,null,"MIS.CPNS05","CP thưởng",null,null,20]
["Trust",null,"MIS.CPNS06","CP nhân sự thuê ngoài, thời vụ",null,null,21]
[null,null,"MIS.CPNS07","CP phúc lợi",null,null,22]
["Sub",null,"MIS.CPNS08","CP phụ cấp",null,null,23]
[null,null,"MIS.CP001","CP nhiên liệu, năng lượng",null,null,24]
["Fund",null,"MIS.CP002","CP công nghệ thông tin",null,null,25]
[null,null,"MIS.CP003","CP điện thoại, internet",null,null,26]
["Other",null,"MIS.CP004","CP bảo dưỡng sửa chữa",null,null,27]
[null,null,"MIS.CP005","CP PCCC, vật tư tiêu hao",null,null,28]
[null,null,"MIS.CP006","CP cầu đường, bến bãi",null,null,29]
[null,null,"MIS.CP007","Phí bảo trì đường bộ",null,null,30]
[null,null,"MIS.CP008","CP đăng kiểm",null,null,31]
[null,null,"MIS.CP009","CP bảo hiểm trách nhiệm dân sự",null,null,32]
[null,null,"MIS.CP010","CP thuế đất phi nông nghiệp",null,null,33]
[null,null,"MIS.CP011","CP thuê địa điểm",null,null,34]
[null,null,"MIS.CP012","CP bảo hiểm hành khách",null,null,35]
[null,null,"MIS.CP013","CP bảo hiểm tài sản",null,null,36]
[null,null,"MIS.CP014","CP bảo hiểm vật chất",null,null,37]
[null,null,"MIS.CP015","CP in vé, thẻ",null,null,38]
[null,null,"MIS.CP016","CP đền bù tổn thất",null,null,39]
[null,null,"MIS.CP017","CP hỗ trợ, chăm sóc khách hàng",null,null,40]
[null,null,"MIS.CP018","CP đồng phục",null,null,41]
[null,null,"MIS.CP019","CP thuê xe",null,null,42]
[null,null,"MIS.CP020","CP vận tải khác",null,null,43]
[null,null,"MIS.CP021","Giá vốn phụ tùng",null,null,44]
[null,null,"MIS.CP022","CP vật tư tiêu hao",null,null,45]
[null,null,"MIS.CP023","CP thuê ngoài gia công",null,null,46]
[null,null,"MIS.CP024","CP khác",null,null,47]
[null,null,"MIS.CP025","CP S&M",null,null,48]
[null,null,"MIS.CP026","CP công tác (CTP, vé máy bay, khách sạn, taxi công tác)",null,null,49]
[null,null,"MIS.CP027","CP công cụ dụng cụ vật tư tiêu hao khối hỗ trợ",null,null,50]
[null,null,"MIS.CP028","CP vận chuyển, taxi",null,null,51]
[null,null,"MIS.CP029","CP Tiếp khách",null,null,52]
[null,null,"MIS.CP030","CP đào tạo",null,null,53]
[null,null,"MIS.CP031","CP tuyển dụng",null,null,54]
[null,null,"MIS.CP032","CP nhu yếu phẩm",null,null,55]
[null,null,"MIS.CP033","CP văn phòng phẩm, hành chính",null,null,56]
[null,null,"MIS.CP034","Phí ngân hàng",null,null,57]
[null,null,"MIS.CP035","Thuế môn bài, thuế, Phí khác",null,null,58]
[null,null,"MIS.CP036","CP chuyên gia, tư vấn",null,null,59]
[null,null,"MIS.CP037","CP làm giấy phép, giấy tờ",null,null,60]
[null,null,"MIS.CP038","CP dịch vụ mua ngoài",null,null,61]
[null,null,"MIS.CP039","CP sửa chữa văn phòng",null,null,62]
[null,null,"MIS.CP040","CP điện,nước",null,null,63]
[null,null,"MIS.CPKH01","CP khấu hao phương tiện",null,null,64]
[null,null,"MIS.CPKH02","CP khấu hao thiết bị văn phòng",null,null,65]
[null,null,"MIS.CPKH03","CP khấu hao nhà xưởng",null,null,66]
[null,null,"MIS.DTTC","Thu nhập tài chính",null,null,67]
[null,null,"MIS.CPTC","Chi phí tài chính",null,null,68]
[null,null,"MIS.DTK","Thu khác",null,null,69]
[null,null,"MIS.CPK","CP khác",null,null,70]

{"sheet":"Commit","index":7,"n_rows":75,"n_cols":13,"rows_kept":75,"cut":false,"hidden":false,"merged":[]}
[{"$f":"Range2(L_CI[[CI type]:[FS code]])","v":"E6:G75"}]
[{"$f":"Site!A2","v":"𝓢𝓪𝓲𝓰𝓸𝓷"},null,"COMMIT (MÃ KHOẢN MỤC)",null,"Là danh mục chi tiết được sử dụng để lập ngân sách và kiểm soát ngân sách"]
[{"$f":"Site!A3","v":"𝓑𝓾𝓼"}]
[null,null,null,null,"⏬","⏬","⏬"]
[null,"_","CI code","CI name","CI type","MIS code","FS code","Properties","#","_","MIS name","Lồng","Trùng"]
["Site",null,"MIS.DT001","Doanh thu bán vé","Doanh thu","MIS.DT001","001_",null,1,null,{"$f":"_xlfn.XLOOKUP(L_CI[MIS code],L_Mis[MIS code],L_Mis[MIS name],\"-\")","v":"Doanh thu bán vé"},{"$f":"_Integrate(L_CI[CI code])","v":"MIS.CPK"},{"$f":"_Duplicate(L_CI[CI code])","v":"null"}]
[null,null,"MIS.DT002","Doanh thu trợ giá ","Doanh thu","MIS.DT002","001_",null,2,null,"Doanh thu trợ giá "]
["Fund center",null,"MIS.DT003","Doanh thu quảng cáo","Doanh thu","MIS.DT003","001_",null,3,null,"Doanh thu quảng cáo"]
[null,null,"MIS.DT004","Doanh thu cho thuê tài sản","Doanh thu","MIS.DT004","001_",null,4,null,"Doanh thu cho thuê tài sản"]
["Profit center",null,"MIS.DT005","Doanh thu hợp tác kinh doanh","Doanh thu","MIS.DT005","001_",null,5,null,"Doanh thu hợp tác kinh doanh"]
[null,null,"MIS.DT006","Doanh thu trông giữ xe","Doanh thu","MIS.DT006","001_",null,6,null,"Doanh thu trông giữ xe"]
["Cost center",null,"MIS.DT007","Doanh thu sửa chữa bảo dưỡng","Doanh thu","MIS.DT007","001_",null,7,null,"Doanh thu sửa chữa bảo dưỡng"]
[null,null,"MIS.DT008","Doanh thu bán phụ tùng","Doanh thu","MIS.DT008","001_",null,8,null,"Doanh thu bán phụ tùng"]
["MIS code",null,"MIS.DT009","Doanh thu bán xăng dầu","Doanh thu","MIS.DT009","001_",null,9,null,"Doanh thu bán xăng dầu"]
[null,null,"MIS.DT010","Doanh thu đào tạo lái xe","Doanh thu","MIS.DT010","001_",null,10,null,"Doanh thu đào tạo lái xe"]
["Commit",null,"MIS.DT011","Doanh thu sát hạch lái xe","Doanh thu","MIS.DT011","001_",null,11,null,"Doanh thu sát hạch lái xe"]
[null,null,"MIS.DT012","Doanh thu cho thuê xe","Doanh thu","MIS.DT012","001_",null,12,null,"Doanh thu cho thuê xe"]
["Object",null,"MIS.DT013","Doanh thu hoạt động du lịch","Doanh thu","MIS.DT013","001_",null,13,null,"Doanh thu hoạt động du lịch"]
[null,null,"MIS.DT014","Doanh thu dịch vụ sạc pin","Doanh thu","MIS.DT014","001_",null,14,null,"Doanh thu dịch vụ sạc pin"]
["Asset",null,"MIS.DT015","Doanh thu dịch vụ khác","Doanh thu","MIS.DT015","001_",null,15,null,"Doanh thu dịch vụ khác"]
[null,null,"MIS.CPNS01","CP lương chính","Chi phí","MIS.CPNS01","011_",null,16,null,"CP lương chính"]
["Statistic",null,"MIS.CPNS02","CP lương ngoài giờ","Chi phí","MIS.CPNS02","011_",null,17,null,"CP lương ngoài giờ"]
[null,null,"MIS.CPNS03","CP lương tháng 13","Chi phí","MIS.CPNS03","011_",null,18,null,"CP lương tháng 13"]
["Financial",null,"MIS.CPNS04","CP BHXH, BHYT, BHTN","Chi phí","MIS.CPNS04","011_",null,19,null,"CP BHXH, BHYT, BHTN"]
[null,null,"MIS.CPNS05","CP thưởng","Chi phí","MIS.CPNS05","011_",null,20,null,"CP thưởng"]
["Trust",null,"MIS.CPNS06","CP nhân sự thuê ngoài, thời vụ","Chi phí","MIS.CPNS06","011_",null,21,null,"CP nhân sự thuê ngoài, thời vụ"]
[null,null,"MIS.CPNS07","CP phúc lợi","Chi phí","MIS.CPNS07","011_",null,22,null,"CP phúc lợi"]
["Sub",null,"MIS.CPNS08","CP phụ cấp","Chi phí","MIS.CPNS08","011_",null,23,null,"CP phụ cấp"]
[null,null,"MIS.CP001","CP nhiên liệu, năng lượng","Chi phí","MIS.CP001","011_",null,24,null,"CP nhiên liệu, năng lượng"]
["Fund",null,"MIS.CP002","CP công nghệ thông tin","Chi phí","MIS.CP002","011_",null,25,null,"CP công nghệ thông tin"]
[null,null,"MIS.CP003","CP điện thoại, internet","Chi phí","MIS.CP003","011_",null,26,null,"CP điện thoại, internet"]
["Other",null,"MIS.CP004","CP bảo dưỡng sửa chữa","Chi phí","MIS.CP004","011_",null,27,null,"CP bảo dưỡng sửa chữa"]
[null,null,"MIS.CP005","CP PCCC, vật tư tiêu hao","Chi phí","MIS.CP005","011_",null,28,null,"CP PCCC, vật tư tiêu hao"]
[null,null,"MIS.CP006","CP cầu đường, bến bãi","Chi phí","MIS.CP006","011_",null,29,null,"CP cầu đường, bến bãi"]
[null,null,"MIS.CP007","Phí bảo trì đường bộ","Chi phí","MIS.CP007","011_",null,30,null,"Phí bảo trì đường bộ"]
[null,null,"MIS.CP008","CP đăng kiểm","Chi phí","MIS.CP008","011_",null,31,null,"CP đăng kiểm"]
[null,null,"MIS.CP009","CP bảo hiểm trách nhiệm dân sự","Chi phí","MIS.CP009","011_",null,32,null,"CP bảo hiểm trách nhiệm dân sự"]
[null,null,"MIS.CP010","CP thuế đất phi nông nghiệp","Chi phí","MIS.CP010","011_",null,33,null,"CP thuế đất phi nông nghiệp"]
[null,null,"MIS.CP011","CP thuê địa điểm","Chi phí","MIS.CP011","011_",null,34,null,"CP thuê địa điểm"]
[null,null,"MIS.CP012","CP bảo hiểm hành khách","Chi phí","MIS.CP012","011_",null,35,null,"CP bảo hiểm hành khách"]
[null,null,"MIS.CP013","CP bảo hiểm tài sản","Chi phí","MIS.CP013","011_",null,36,null,"CP bảo hiểm tài sản"]
[null,null,"MIS.CP014","CP bảo hiểm vật chất","Chi phí","MIS.CP014","011_",null,37,null,"CP bảo hiểm vật chất"]
[null,null,"MIS.CP015","CP in vé, thẻ","Chi phí","MIS.CP015","025_",null,38,null,"CP in vé, thẻ"]
[null,null,"MIS.CP016","CP đền bù tổn thất","Chi phí","MIS.CP016","011_",null,39,null,"CP đền bù tổn thất"]
[null,null,"MIS.CP017","CP hỗ trợ, chăm sóc khách hàng","Chi phí","MIS.CP017","025_",null,40,null,"CP hỗ trợ, chăm sóc khách hàng"]
[null,null,"MIS.CP018","CP đồng phục","Chi phí","MIS.CP018","011_",null,41,null,"CP đồng phục"]
[null,null,"MIS.CP019","CP thuê xe","Chi phí","MIS.CP019","011_",null,42,null,"CP thuê xe"]
[null,null,"MIS.CP020","CP vận tải khác","Chi phí","MIS.CP020","011_",null,43,null,"CP vận tải khác"]
[null,null,"MIS.CP021","Giá vốn phụ tùng","Chi phí","MIS.CP021","011_",null,44,null,"Giá vốn phụ tùng"]
[null,null,"MIS.CP022","CP vật tư tiêu hao","Chi phí","MIS.CP022","011_",null,45,null,"CP vật tư tiêu hao"]
[null,null,"MIS.CP023","CP thuê ngoài gia công","Chi phí","MIS.CP023","011_",null,46,null,"CP thuê ngoài gia công"]
[null,null,"MIS.CP024","CP khác","Chi phí","MIS.CP024","011_",null,47,null,"CP khác"]
[null,null,"MIS.CP025","CP S&M","Chi phí","MIS.CP025","025_",null,48,null,"CP S&M"]
[null,null,"MIS.CP026","CP công tác (CTP, vé máy bay, khách sạn, taxi công tác)","Chi phí","MIS.CP026","026_",null,49,null,"CP công tác (CTP, vé máy bay, khách sạn, taxi công tác)"]
[null,null,"MIS.CP027","CP công cụ dụng cụ vật tư tiêu hao khối hỗ trợ","Chi phí","MIS.CP027","026_",null,50,null,"CP công cụ dụng cụ vật tư tiêu hao khối hỗ trợ"]
[null,null,"MIS.CP028","CP vận chuyển, taxi","Chi phí","MIS.CP028","026_",null,51,null,"CP vận chuyển, taxi"]
[null,null,"MIS.CP029","CP Tiếp khách","Chi phí","MIS.CP029","026_",null,52,null,"CP Tiếp khách"]
[null,null,"MIS.CP030","CP đào tạo","Chi phí","MIS.CP030","026_",null,53,null,"CP đào tạo"]
[null,null,"MIS.CP031","CP tuyển dụng","Chi phí","MIS.CP031","026_",null,54,null,"CP tuyển dụng"]
[null,null,"MIS.CP032","CP nhu yếu phẩm","Chi phí","MIS.CP032","026_",null,55,null,"CP nhu yếu phẩm","Z000999","Non Budget Control"]
[null,null,"MIS.CP033","CP văn phòng phẩm, hành chính","Chi phí","MIS.CP033","026_",null,56,null,"CP văn phòng phẩm, hành chính","Z000999_BP","NonBudget Control_BP"]
[null,null,"MIS.CP034","Phí ngân hàng","Chi phí","MIS.CP034","026_",null,57,null,"Phí ngân hàng","Z000999_GR","NonBudget Control_GR"]
[null,null,"MIS.CP035","Thuế môn bài, thuế, Phí khác","Chi phí","MIS.CP035","026_",null,58,null,"Thuế môn bài, thuế, Phí khác"]
[null,null,"MIS.CP036","CP chuyên gia, tư vấn","Chi phí","MIS.CP036","026_",null,59,null,"CP chuyên gia, tư vấn"]
[null,null,"MIS.CP037","CP làm giấy phép, giấy tờ","Chi phí","MIS.CP037","026_",null,60,null,"CP làm giấy phép, giấy tờ"]
[null,null,"MIS.CP038","CP dịch vụ mua ngoài","Chi phí","MIS.CP038","026_",null,61,null,"CP dịch vụ mua ngoài"]
[null,null,"MIS.CP039","CP sửa chữa văn phòng","Chi phí","MIS.CP039","026_",null,62,null,"CP sửa chữa văn phòng"]
[null,null,"MIS.CP040","CP điện,nước","Chi phí","MIS.CP040","026_",null,63,null,"CP điện,nước"]
[null,null,"MIS.CPKH01","CP khấu hao phương tiện","Chi phí","MIS.CPKH01","011_",null,64,null,"CP khấu hao phương tiện"]
[null,null,"MIS.CPKH02","CP khấu hao thiết bị văn phòng","Chi phí","MIS.CPKH02","026_",null,65,null,"CP khấu hao thiết bị văn phòng"]
[null,null,"MIS.CPKH03","CP khấu hao nhà xưởng","Chi phí","MIS.CPKH03","011_",null,66,null,"CP khấu hao nhà xưởng"]
[null,null,"MIS.DTTC","Thu nhập tài chính","TN tài chính","MIS.DTTC","021_",null,67,null,"Thu nhập tài chính"]
[null,null,"MIS.CPTC","Chi phí tài chính","Chi phí","MIS.CPTC","022_",null,68,null,"Chi phí tài chính"]
[null,null,"MIS.DTK","Thu khác","TN khác","MIS.DTK","031_",null,69,null,"Thu khác"]
[null,null,"MIS.CPK","CP khác","Chi phí","MIS.CPK","032_",null,70,null,"CP khác"]

{"sheet":"Object","index":8,"n_rows":32,"n_cols":10,"rows_kept":32,"cut":false,"hidden":false,"merged":[]}
[{"$f":"Range2(L_OJ[Site])","v":"E6:E17"}]
[{"$f":"Site!A2","v":"𝓢𝓪𝓲𝓰𝓸𝓷"},null,"OBJECT CODE (MÃ ĐỐI TƯỢNG DỊCH VỤ)",null,"Ví dụ: tuyến xe, tòa nhà"]
[{"$f":"Site!A3","v":"𝓑𝓾𝓼"}]
[]
[null,"_","Object","Object name","Site","Properties","#","_","Lồng","Trùng"]
["Site",null,"_","_",null,null,1,null,{"$f":"_Integrate(L_OJ[Object])","v":"null"},{"$f":"_Duplicate(L_OJ[Object])","v":"null"}]
[null,null,"XN01","Văn phòng Buýt Lạc Long Quân",null,null,2]
["Fund center",null,"XN02","Xí nghiệp Vận tải Buýt",null,null,3]
[null,null,"XN03","Văn phòng Buýt Phan Văn Trị",null,null,4]
["Profit center",null,"XN04","Xí Nghiệp Dịch Vụ Vận Tải và Du Lịch",null,null,5]
[null,null,"XN05","Xí Nghiệp Dịch Vụ Sửa Chữa Ô tô",null,null,6]
["Cost center",null,"XN06","Trung tâm giáo dục nghề nghiệp SaigonBus",null,null,7]
[null,null,"XN11","Cửa hàng Xăng dầu 500 Nguyễn Đình Chiểu",null,null,8]
["MIS code",null,"XN12","Văn phòng công ty",null,null,9]
[null,null,"XN13","171 Điện Biên Phủ",null,null,10]
["Commit",null,"XN14","Cửa hàng Xăng dầu 439 Phan Văn Trị",null,null,11]
[null,null,"XN15","Phòng tổng hợp",null,null,12]
["Object"]
[]
["Asset"]
[]
["Statistic"]
[]
["Financial"]
[]
["Trust"]
[]
["Sub"]
[]
["Fund"]
[]
["Other"]

{"sheet":"Asset","index":9,"n_rows":32,"n_cols":10,"rows_kept":32,"cut":false,"hidden":false,"merged":[]}
[]
[{"$f":"Site!A2","v":"𝓢𝓪𝓲𝓰𝓸𝓷"},null,"ASSET (PHÂN LOẠI TÀI SẢN)","Là danh mục để phân loại tài sản khi lập ngân sách CAPEX"]
[{"$f":"Site!A3","v":"𝓑𝓾𝓼"}]
[null,null,null,"⏬"]
[null,"_","Asset type","TK NG","Properties","#","_","Tên tài khoản","Lồng","Trùng"]
["Site",null,"Mua sắm CCDC & TSCĐ hoạt động","220_",null,1,null,{"$f":"_xlfn.XLOOKUP(L_AS[TK NG],L_FS[FS code],L_FS[FS name],\"-\")","v":"Tài sản cố định"},{"$f":"_Integrate(L_AS[Asset type])","v":"null"},{"$f":"_Duplicate(L_AS[Asset type])","v":"null"}]
[null,null,"CP Hệ thống","220_",null,2,null,"Tài sản cố định"]
["Fund center",null,"CP Mua phương tiện Ebus","220_",null,3,null,"Tài sản cố định"]
[null,null,"CP Đầu tư thiết bị xưởng sửa chữa","220_",null,4,null,"Tài sản cố định"]
["Profit center",null,"CP Đầu tư Trạm sạc","220_",null,5,null,"Tài sản cố định"]
[null,null,"Hạ tầng điện trạm sạc","220_",null,6,null,"Tài sản cố định"]
["Cost center"]
[]
["MIS code"]
[]
["Commit"]
[]
["Object"]
[]
["Asset"]
[]
["Statistic"]
[]
["Financial"]
[]
["Trust"]
[]
["Sub"]
[]
["Fund"]
[]
["Other"]

{"sheet":"Statistic","index":10,"n_rows":32,"n_cols":10,"rows_kept":32,"cut":false,"hidden":false,"merged":[]}
[]
[{"$f":"Site!A2","v":"𝓢𝓪𝓲𝓰𝓸𝓷"},null,"STATISTIC (CHỈ TIÊU THỐNG KÊ)",null,"Là danh mục các chỉ tiêu thống kê hoạt động, danh mục này chủ yếu là các chỉ tiêu phi tài chính"]
[{"$f":"Site!A3","v":"𝓑𝓾𝓼"}]
[null,null,{"$f":"_RandExceptT(10,90,L_ST[Statistics])","v":83}]
[null,"_","Statistics","Statistics name","Unit","Properties","#",null,"Lồng","Trùng"]
["Site",null,"CT10","Số xe vận hành","xe",null,null,null,{"$f":"_Integrate(L_ST[Statistics])","v":"null"},{"$f":"_Duplicate(L_ST[Statistics])","v":"null"}]
[null,null,"CT27","Số xe vận hành quy đổi","xe"]
["Fund center",null,"CT40","Số km vận hành","km"]
[null,null,"CT71","Số học viên đào tạo A1","hv"]
["Profit center",null,"CT47","Số học viên đào tạo B2","hv"]
[null,null,"CT61","Số học viên sát hạch A1","hv"]
["Cost center",null,"CT63","SL dầu diezel bán","lít"]
[null,null,"CT45","SL xăng RON92 bán","lít"]
["MIS code",null,"CT52","SL xăng RON95 bán","lít"]
[]
["Commit"]
[]
["Object"]
[]
["Asset"]
[]
["Statistic"]
[]
["Financial"]
[]
["Trust"]
[]
["Sub"]
[]
["Fund"]
[]
["Other"]

{"sheet":"Financial","index":11,"n_rows":53,"n_cols":11,"rows_kept":53,"cut":false,"hidden":false,"merged":[]}
[{"$f":"Range2(L_FS[BS code])","v":"E6:E53"}]
[{"$f":"Site!A2","v":"𝓢𝓪𝓲𝓰𝓸𝓷"},null,"FINANCIAL (CHỈ TIÊU BCTC)",null,"Là chỉ tiêu báo cáo tài chính, được nội suy ra từ các mã CI và Cost center, để lập báo cáo tài chính dự phóng"]
[{"$f":"Site!A3","v":"𝓑𝓾𝓼"},null,null,null,null,null,null,null,"CASH FLOW"]
[null,null,null,null,"⏬","⏬"]
[null,"_","FS code","FS name","BS code","No","Properties",null,"CF code","CF name","Properties"]
["Site",null,"001_","Doanh thu bán hàng","421_",null,null,null,"01_","Tiền thu từ bán hàng và cung cấp dịch vụ và doanh "]
[null,null,"002_","Chiết khấu, giảm giá","421_",null,null,null,"02_","Tiền chi trả cho người cung cấp hàng hóa, dịch vụ"]
["Fund center",null,"011_","Giá vốn hàng bán","421_",null,null,null,"03_","Tiền chi trả người lao động"]
[null,null,"021_","Doanh thu tài chính","421_",null,null,null,"04_","Tiền lãi vay đã trả"]
["Profit center",null,"022_","Chi phí tài chính","421_",null,null,null,"05_","Thuế thu nhập doanh nghiệp đã nộp"]
[null,null,"025_","Chi phí bán hàng","421_",null,null,null,"06_","Tiền thu khác từ các hoạt động kinh doanh"]
["Cost center",null,"026_","Chi phí quản lý","421_",null,null,null,"07_","Tiền chi khác cho các hoạt động kinh doanh"]
[null,null,"031_","Thu thập khác","421_",null,null,null,"21_","Tiền chi để mua sắm và xây dựng TSCĐ các tài sản dài hạn"]
["MIS code",null,"032_","Chi phí khác","421_",null,null,null,"22_","Tiền thu từ thanh lý, nhượng bán TSCĐ tài sản dài hạn"]
[null,null,"110_","Tiền và các khoản tương đương tiền","110_",1,null,null,"23_","Tiền chi cho vay, mua công cụ nợ của đơn vị khác"]
["Commit",null,"120_","Các khoản đầu tư tài chính ngắn hạn","120_",1,null,null,"24_","Tiền thu hồi cho vay, bán lại công cụ nợ"]
[null,null,"130_","Các khoản phải thu ngắn hạn","130_",1,null,null,"25_","Tiền chi đầu tư góp vốn vào các đơn vị khác"]
["Object",null,"140_","Hàng tồn kho","140_",1,null,null,"26_","Tiền thu hồi đầu tư góp vốn vào các đơn vị khác"]
[null,null,"150_","Chi phí trả trước ngắn hạn","150_",1,null,null,"27_","Tiền thu lãi cho vay, cổ tức, lợi nhuận được chia"]
["Asset",null,"152_","Thuế GTGT được khấu trừ HĐKD","152_",1,null,null,"31_","Tiền thu từ phát hành cổ phiếu, nhận vốn góp của CSH"]
[null,null,"153_","Thuế GTGT được khấu trừ HĐĐT","153_",1,null,null,"32_","Tiền trả lại vốn góp cho các chủ sở hữu"]
["Statistic",null,"158_","Tài sản ngắn hạn khác","158_",1,null,null,"33_","Tiền thu từ đi vay"]
[null,null,"210_","Các khoản phải thu dài hạn","210_",1,null,null,"34_","Tiền trả nợ gốc vay"]
["Financial",null,"220_","Tài sản cố định","220_",1,null,null,"36_","Cổ tức và lợi nhuận đã trả cho CSH"]
[null,null,"223_","Hao mòn TSCĐ","223_",1]
["Trust",null,"231_","Bất động sản đầu tư","231_",1]
[null,null,"232_","Hao mòn BĐS đầu tư","232_",1]
["Sub",null,"240_","Tài sản dở dang dài hạn","240_",1]
[null,null,"250_","Các khoản đầu tư tài chính dài hạn","250_",1]
["Fund",null,"260_","Tổng tài sản dài hạn khác","260_",1]
[null,null,"269_","Lợi thế thương mại","269_",1]
["Other",null,"311_","Phải trả người bán ngắn hạn","311_",-1]
[null,null,"312_","Người mua trả tiền trước","312_",-1]
[null,null,"313_","Thuế và các khoản phải nộp NN","313_",-1]
[null,null,"314_","Phải trả nhân viên","314_",-1]
[null,null,"315_","Chi phí phải trả ngắn hạn","315_",-1]
[null,null,"318_","Doanh thu chưa thực hiện ngắn hạn","318_",-1]
[null,null,"319_","Các khoản phải trả ngắn hạn khác","319_",-1]
[null,null,"320_","Vay và nợ thuê tài chính ngắn hạn","320_",-1]
[null,null,"321_","Vay và nợ dài hạn đến hạn trả","321_",-1]
[null,null,"331_","Phải trả người bán dài hạn","331_",-1]
[null,null,"336_","Doanh thu chưa thực hiện dài hạn","336_",-1]
[null,null,"338_","Vay và nợ thuê tài chính dài hạn","338_",-1]
[null,null,"342_","Dự phòng phải trả dài hạn","342_",-1]
[null,null,"350_","Nợ dài hạn khác","350_",-1]
[null,null,"411_","Vốn đầu tư của chủ sở hữu","411_",-1]
[null,null,"412_","Thặng dư vốn cổ phần","412_",-1]
[null,null,"416_","Chênh lệch đánh giá lại tài sản","416_",-1]
[null,null,"421_","Lợi nhuận sau thuế chưa phân phối","421_",-1]
[null,null,"430_","Nguồn vốn khác","430_",-1]
[null,null,"621_","Chi phí NPL trực tiếp","421_"]
[null,null,"622_","Chi phí NC trực tiếp","421_"]
[null,null,"627_","Chi phí sản xuất chung","421_"]

{"sheet":"Trust","index":12,"n_rows":32,"n_cols":8,"rows_kept":32,"cut":false,"hidden":false,"merged":[]}
[]
[{"$f":"Site!A2","v":"𝓢𝓪𝓲𝓰𝓸𝓷"},null,"MỨC ĐỘ TIN CẬY","Là danh mục phân loại mức độ tin cậy của ngân sách"]
[{"$f":"Site!A3","v":"𝓑𝓾𝓼"}]
[]
[null,"_","Trust","Trust note","#",null,"Lồng","Trùng"]
["Site",null,"Xanh","Các khoản chi thường xuyên, có cơ sở lập",1,null,{"$f":"_Integrate(L_TR[Trust])","v":"null"},{"$f":"_Duplicate(L_TR[Trust])","v":"null"}]
[null,null,"Vàng","Các khoản chi thay đổi theo các kế hoạch nhưng không có công thức tính, cần có CBLĐ cấp cao hơn phê duyệt",2]
["Fund center",null,"Đỏ","Các khoản chi thay đổi tương ứng theo các kế hoạch (kiểm soát thông qua bộ ĐMHM) nhưng khi thay đổi kế hoạch thì Ngân sách chi phí không được cập nhật tương ứng",3]
[null,null,"Tím",null,4]
["Profit center"]
[]
["Cost center"]
[]
["MIS code"]
[]
["Commit"]
[]
["Object"]
[]
["Asset"]
[]
["Statistic"]
[]
["Financial"]
[]
["Trust"]
[]
["Sub"]
[]
["Fund"]
[]
["Other"]

{"sheet":"Sub","index":13,"n_rows":32,"n_cols":9,"rows_kept":32,"cut":false,"hidden":false,"merged":[]}
[]
[{"$f":"Site!A2","v":"𝓢𝓪𝓲𝓰𝓸𝓷"},null,"MÃ PHỤ"]
[{"$f":"Site!A3","v":"𝓑𝓾𝓼"}]
[]
[null,"_","Sub code","Sub name","Properties","#",null,"Lồng","Trùng"]
["Site",null,"6_","Bến xe buýt Chợ Lớn – Đại học Nông Lâm ",null,1,null,{"$f":"_Integrate(L_SUB[Sub code])","v":"52_"},{"$f":"_Duplicate(L_SUB[Sub code])","v":"null"}]
[null,null,"10_","Đại học Quốc Gia - Bến xe Miền Tây",null,2,null,"1_"]
["Fund center",null,"50_","Đại học Bách KHO – Đại học Quốc Gia",null,3,null,"4_"]
[null,null,"52_","Bến Thành - Đại học Quốc Gia",null,4]
["Profit center",null,"91_","Bến xe Miền Tây - Chợ nông sản Thủ Đức",null,5]
[null,null,"27_","Bến xe buýt Sài Gòn - Âu Cơ - Bến xe An Sương",null,6]
["Cost center",null,"38_","Khu dân cư Tân Quy - Bến Thành - Đầm Sen",null,7]
[null,null,"45_","Đại học Kinh tế - Bến Thành - Bến xe Miền Đông",null,8]
["MIS code",null,"62_","Bến xe buýt Quận 8 -Thới An",null,9]
[null,null,"64_","Bến xe Miền Đông - Đầm Sen",null,10]
["Commit",null,"93_","Bến Thành - Bến xe Miền Đông mới",null,11]
[null,null,"139_","Bến xe Miền Tây - Khu tái định cư Phú Mỹ",null,12]
["Object",null,"148_","Bến xe Miền Tây - Gò Vấp",null,13]
[null,null,"1_","Bến Thành - Bến xe buýt Chợ Lớn",null,14]
["Asset",null,"4_","Bến Thành - Cộng Hòa - Bến xe An Sương",null,15]
[null,null,"15_","Chợ Phú Định - Đầm Sen",null,16]
["Statistic",null,"43_","Bến xe Miền Đông - Phà Cát Lái",null,17]
[null,null,"65_","Bến Thành - Cách Mạng Tháng Tám - Bến xe An Sương",null,18]
["Financial",null,"152_","Khu dân cư Trung Sơn - Bến Thành - Sân bay Tân Sơn Nhất",null,19]
[null,null,"32V_","Bến xe Miền Tây - Bến xe Ngã tư Ga",null,20]
["Trust",null,"148V_","Bến xe Miền Tây - Gò Vấp",null,21]
[null,null,"38V_","Khu dân cư Tân Quy - Bến Thành - Đầm Sen",null,22]
["Sub",null,"64V_","Bến xe Miền Đông - Đầm Sen",null,23]
[null,null,"45V_","Đại học Kinh tế - Bến Thành - Bến xe Miền Đông",null,24]
["Fund",null,"140V_","Bến xe buýt Sài Gòn - Phạm Thế Hiển - Khu dân cư Phú Lợi",null,25]
[]
["Other"]

{"sheet":"Fund","index":14,"n_rows":32,"n_cols":8,"rows_kept":32,"cut":false,"hidden":false,"merged":[]}
[]
[{"$f":"Site!A2","v":"𝓢𝓪𝓲𝓰𝓸𝓷"},null,"NGUỒN QUỸ"]
[{"$f":"Site!A3","v":"𝓑𝓾𝓼"}]
[]
[null,"_","Fund","Fund name","#",null,"Lồng","Trùng"]
["Site",null,null,null,null,null,{"$f":"_Integrate(L_FD[[#This Row],[Fund]])","v":"null"},{"$f":"_Duplicate(L_FD[[#This Row],[Fund]])","v":"null"}]
[]
["Fund center"]
[]
["Profit center"]
[]
["Cost center"]
[]
["MIS code"]
[]
["Commit"]
[]
["Object"]
[]
["Asset"]
[]
["Statistic"]
[]
["Financial"]
[]
["Trust"]
[]
["Sub"]
[]
["Fund"]
[]
["Other"]

{"sheet":"Other","index":15,"n_rows":32,"n_cols":4,"rows_kept":32,"cut":false,"hidden":false,"merged":[]}
[]
[{"$f":"Site!A2","v":"𝓢𝓪𝓲𝓰𝓸𝓷"},null,"SỐ THÁNG PHÂN BỔ"]
[{"$f":"Site!A3","v":"𝓑𝓾𝓼"}]
[]
[null,"_","KỲ PB","#"]
["Site",null,0,1]
[null,null,1,2]
["Fund center",null,2,3]
[null,null,3,4]
["Profit center",null,6,5]
[null,null,9,6]
["Cost center",null,12,7]
[null,null,15,8]
["MIS code",null,18,9]
[null,null,21,10]
["Commit",null,24,11]
[null,null,27,12]
["Object",null,30,13]
[null,null,33,14]
["Asset",null,36,15]
[null,null,39,16]
["Statistic",null,42,17]
[]
["Financial"]
[]
["Trust"]
[]
["Sub"]
[]
["Fund"]
[]
["Other"]